bitfinex-derivatives/quotes_ETHF0:USTF0_20230104
["timestamp","ask_amount","ask_price","bid_price","bid_amount"]
[1672826544246,6.59787598,1249.9,1249.8,1.591]
[1672826544247,7.18845887,1249.9,1249.8,1.591]
[1672826546983,7.18845887,1249.9,1249.8,1.58807107]
[1672826547292,12.6003,1249.9,1249.7,3.000123]
[1672826547511,2.7814,1249.8,1249.7,0.6399596]
[1672826547722,14.95455887,1249.8,1249.5,1.8000738]
[1672826548023,4.6083,1249.7,1249.5,4.3000738]
[1672826548234,2.9923613,1249.6,1249.5,4.3000738]
[1672826548654,2.9923613,1249.6,1249.5,2.5]
[1672826548865,4.6083,1249.7,1249.5,2.5]
[1672826549292,2.99225999,1249.6,1249.5,2.5]
[1672826552019,2.99225999,1249.6,1249.5,4.101]
[1672826552227,4.18697814,1249.6,1249.5,11.10844101]
[1672826552443,1.79430486,1249.6,1249.5,12.52682828]
[1672826553382,4.18697814,1249.6,1249.5,12.90610494]
[1672826553703,2.39267328,1249.6,1249.5,12.90610494]
[1672826553907,4.18700619,1249.6,1249.5,12.90610494]
[1672826554118,2.39267328,1249.6,1249.5,12.90610494]
[1672826554969,1.79444665,1249.6,1249.5,11.10844101]
[1672826555168,4.18711993,1249.6,1249.5,11.10844101]
[1672826555489,1.79444665,1249.6,1249.5,11.10844101]
[1672826555699,4.18711993,1249.6,1249.5,11.10844101]
[1672826555914,4.18711993,1249.6,1249.5,12.90606869]
[1672826556328,2.39267328,1249.6,1249.5,12.90606869]
[1672826556540,4.18709516,1249.6,1249.5,12.90606869]
[1672826556748,2.39267328,1249.6,1249.5,12.90606869]
[1672826556965,4.18708595,1249.6,1249.5,12.90606869]
[1672826558015,4.18708595,1249.6,1249.5,9.89876869]
[1672826558226,5.38493327,1249.6,1249.5,5.89862768]
[1672826558436,2.39267328,1249.6,1249.5,5.89862768]
[1672826560002,4.18696675,1249.6,1249.5,8.29776869]
[1672826560213,2.39267328,1249.6,1249.5,8.29776869]
[1672826561064,4.18703385,1249.6,1249.5,8.29776869]
[1672826561693,2.39267328,1249.6,1249.5,8.29776869]
[1672826561907,4.18697149,1249.6,1249.5,8.29776869]
[1672826562218,2.39267328,1249.6,1249.5,8.29776869]
[1672826562959,4.18703219,1249.6,1249.5,8.29776869]
[1672826563159,2.39267328,1249.6,1249.5,8.29776869]
[1672826564323,4.18713178,1249.6,1249.5,6.50014101]
[1672826565687,2.39267328,1249.6,1249.5,6.50014101]
[1672826565893,2.39267328,1249.6,1249.5,8.29803749]
[1672826567263,2.39267328,1249.6,1249.5,5.89889648]
[1672826569150,2.39267328,1249.6,1249.5,8.29803749]
[1672826573364,2.39267328,1249.6,1249.5,6.50014101]
[1672826577771,2.39267328,1249.6,1249.5,8.2989166]
[1672826578083,2.39267328,1249.6,1249.5,6.50014101]
[1672826580392,5.38493327,1249.6,1249.5,8.29915439]
[1672826581236,5.38493327,1249.6,1249.5,6.50014101]
[1672826581974,5.38493327,1249.6,1249.5,8.29932325]
[1672826582491,5.38493327,1249.6,1249.5,6.50014101]
[1672826584178,5.38493327,1249.6,1249.5,7.91858244]
[1672826584502,5.38493327,1249.6,1249.5,6.50014101]
[1672826585021,5.38493327,1249.6,1249.5,7.9185824]
[1672826585233,5.38493327,1249.6,1249.5,6.50014101]
[1672826585860,5.38493327,1249.6,1249.5,7.91858246]
[1672826586176,2.99225999,1249.6,1249.5,7.91858246]
[1672826587753,2.99225999,1249.6,1249.5,6.50014101]
[1672826588591,2.99225999,1249.6,1249.5,7.91859637]
[1672826599628,2.99225999,1249.6,1249.5,7.91860682]
[1672826601520,2.99225999,1249.6,1249.5,7.91860572]
[1672826604775,2.99225999,1249.6,1249.5,7.91860005]
[1672826612253,2.99225999,1249.6,1249.5,6.50014101]
[1672826612563,3.58848227,1249.7,1249.5,3.98914101]
[1672826612768,3.58848227,1249.7,1249.6,1.601]
[1672826612769,7.76964114,1249.7,1249.6,1.601]
[1672826612980,7.18845887,1249.7,1249.6,1.601]
[1672826613195,10.78340519,1249.7,1249.5,4.30087954]
[1672826613398,10.78340519,1249.7,1249.6,1.601]
[1672826613717,6.60224632,1249.7,1249.6,1.601]
[1672826616028,6.60224632,1249.7,1249.5,4.30087954]
[1672826616236,6.60224632,1249.7,1249.6,1.601]
[1672826625709,6.60224632,1249.7,1249.6,1.59315985]
[1672826627607,3.59494632,1249.7,1249.6,1.59315985]
[1672826627928,6.60224632,1249.7,1249.6,1.59315985]
[1672826636429,10.78340519,1249.7,1249.6,1.59315985]
[1672826636644,6.60224632,1249.7,1249.6,1.59315985]
[1672826637912,10.78340519,1249.7,1249.6,1.59315985]
[1672826638122,6.60224632,1249.7,1249.6,1.59315985]
[1672826643694,3.59494632,1249.7,1249.6,1.59315985]
[1672826644218,8.78545887,1249.8,1249.6,1.59315985]
[1672826644219,8.19924632,1249.8,1249.6,3.39403939]
[1672826645690,5.19194632,1249.8,1249.6,3.39403939]
[1672826646639,9.37310519,1249.8,1249.6,3.39403939]
[1672826648434,5.19194632,1249.8,1249.6,3.39403939]
[1672826648950,9.37310519,1249.8,1249.6,3.39403939]
[1672826649579,9.37310519,1249.8,1249.6,1.59315985]
[1672826649785,9.37310519,1249.8,1249.6,3.39403939]
[1672826651047,9.37310519,1249.8,1249.6,1.59315985]
[1672826651252,6.60224632,1249.7,1249.6,1.59315985]
[1672826651577,3.0073,1249.7,1249.6,3.39403939]
[1672826654408,12.37440519,1249.8,1249.6,3.39403939]
[1672826655577,2.99439307,1249.7,1249.6,8.40187954]
[1672826655878,5.21277516,1249.7,1249.6,15.02675136]
[1672826656094,2.39443138,1249.7,1249.6,13.60844101]
[1672826656515,2.39443138,1249.7,1249.6,15.4072924]
[1672826656931,2.39443138,1249.7,1249.6,13.60844101]
[1672826657348,2.39443138,1249.7,1249.6,15.02673063]
[1672826657773,2.39443138,1249.7,1249.6,15.02673096]
[1672826657981,2.39443138,1249.7,1249.6,13.60844101]
[1672826659348,2.39443138,1249.7,1249.6,15.0267153]
[1672826659879,2.39443138,1249.7,1249.6,15.40629586]
[1672826661029,2.39443138,1249.7,1249.6,13.00715485]
[1672826661240,2.39443138,1249.7,1249.6,15.40629586]
[1672826661664,2.39443138,1249.7,1249.6,13.60844101]
[1672826661882,4.18888092,1249.7,1249.6,13.60844101]
[1672826662191,4.18880835,1249.7,1249.6,15.40592925]
[1672826663248,2.39443138,1249.7,1249.6,15.40592925]
[1672826663560,4.1888152,1249.7,1249.6,15.40592925]
[1672826665554,1.79438382,1249.7,1249.6,15.40592925]
[1672826666396,1.79438382,1249.7,1249.6,13.60844101]
[1672826666922,1.79438382,1249.7,1249.6,15.40536358]
[1672826667870,4.1888152,1249.7,1249.6,15.40536358]
[1672826668072,1.79438382,1249.7,1249.6,13.00622257]
[1672826668285,4.1888152,1249.7,1249.6,13.00622257]
[1672826668819,1.79438382,1249.7,1249.6,13.00622257]
[1672826669027,1.79438382,1249.7,1249.6,15.40536358]
[1672826669551,1.79438382,1249.7,1249.6,13.00622257]
[1672826669749,1.79438382,1249.7,1249.6,15.40536358]
[1672826669962,1.79438382,1249.7,1249.6,13.00622257]
[1672826670704,2.39443138,1249.7,1249.6,14.20411388]
[1672826671025,2.39443138,1249.7,1249.6,9.39989131]
[1672826674200,2.39443138,1249.7,1249.6,11.19681388]
[1672826674715,2.39443138,1249.7,1249.6,9.39989131]
[1672826674716,2.39059228,1249.7,1249.6,9.39989131]
[1672826675131,2.39059228,1249.7,1249.6,11.19681388]
[1672826675344,2.39059228,1249.7,1249.6,9.39989131]
[1672826675556,2.39059228,1249.7,1249.6,11.19681388]
[1672826678492,2.39059228,1249.7,1249.6,9.99892257]
[1672826679321,5.38088334,1249.7,1249.6,11.19739936]
[1672826680370,5.38088334,1249.7,1249.6,9.99892257]
[1672826682051,2.99029106,1249.7,1249.6,9.99892257]
[1672826682266,2.99029106,1249.7,1249.6,11.19771881]
[1672826683212,2.99029106,1249.7,1249.6,11.19771518]
[1672826683423,2.99029106,1249.7,1249.6,9.99892257]
[1672826683845,2.99029106,1249.8,1249.6,9.99892257]
[1672826684043,8.20024632,1249.9,1249.7,2.79992314]
[1672826686887,2.99261429,1249.8,1249.7,4.59684571]
[1672826687414,8.20024632,1249.9,1249.7,2.79992314]
[1672826692466,12.38140519,1249.9,1249.7,2.79992314]
[1672826692784,8.20024632,1249.9,1249.7,2.79992314]
[1672826693623,12.38140519,1249.9,1249.7,2.79992314]
[1672826693826,8.20024632,1249.9,1249.7,2.79992314]
[1672826694035,12.38140519,1249.9,1249.7,2.79992314]
[1672826694465,12.38140519,1249.9,1249.7,4.59918385]
[1672826696248,12.38140519,1249.9,1249.7,2.79992314]
[1672826697091,12.38140519,1249.9,1249.7,4.59918385]
[1672826697510,3.59494632,1249.8,1249.7,2.79992314]
[1672826697723,12.38140519,1249.9,1249.7,2.79992314]
[1672826697933,3.59494632,1249.8,1249.7,2.79992314]
[1672826698882,12.38140519,1249.9,1249.7,2.79992314]
[1672826699293,3.59494632,1249.8,1249.7,2.79992314]
[1672826700245,12.38140519,1249.9,1249.7,2.79992314]
[1672826701833,12.38140519,1249.9,1249.7,4.59918385]
[1672826702041,12.38140519,1249.9,1249.7,2.79992314]
[1672826703512,12.38140519,1249.9,1249.7,4.59918385]
[1672826705197,9.37410519,1249.9,1249.7,4.59918385]
[1672826705511,12.38140519,1249.9,1249.7,2.79992314]
[1672826705708,12.38140519,1249.9,1249.7,4.59918385]
[1672826706448,3.59494632,1249.8,1249.7,4.59918385]
[1672826707397,9.37410519,1249.9,1249.7,4.59918385]
[1672826707597,12.38140519,1249.9,1249.7,4.59918385]
[1672826707812,3.59494632,1249.8,1249.7,4.59918385]
[1672826712156,3.59494632,1249.8,1249.7,2.79992314]
[1672826713209,3.59494632,1249.8,1249.7,4.59918385]
[1672826717418,3.59494632,1249.8,1249.7,2.79992314]
[1672826718780,3.59494632,1249.8,1249.7,4.59918385]
[1672826732127,3.59494632,1249.8,1249.7,2.79992314]
[1672826732450,7.77610519,1249.8,1249.7,1.601]
[1672826732664,4.18115887,1249.8,1249.7,1.601]
[1672826732868,4.18115887,1249.8,1249.7,2.79992314]
[1672826733192,3.59354308,1249.8,1249.7,2.79992314]
[1672826735085,6.60084308,1249.8,1249.7,2.79992314]
[1672826737388,3.59354308,1249.8,1249.7,2.79992314]
[1672826740642,4.6053,1249.9,1249.7,2.80124513]
[1672826740843,3.59354308,1249.8,1249.7,2.80124513]
[1672826744613,6.60084308,1249.8,1249.7,2.80124513]
[1672826744819,6.60084308,1249.8,1249.7,1.601]
[1672826745033,6.60084308,1249.8,1249.7,2.80124513]
[1672826747361,3.59354308,1249.8,1249.7,2.80124513]
[1672826747568,6.60084308,1249.8,1249.7,2.80124513]
[1672826749355,6.60084308,1249.8,1249.7,4.60161283]
[1672826751553,6.60084308,1249.8,1249.7,2.80124513]
[1672826753032,6.60084308,1249.8,1249.7,1.601]
[1672826753454,6.60084308,1249.8,1249.7,2.80124513]
[1672826753664,6.60084308,1249.8,1249.7,1.601]
[1672826753869,6.60084308,1249.8,1249.7,2.80124513]
[1672826758399,6.60084308,1249.8,1249.7,1.601]
[1672826758930,6.60084308,1249.8,1249.7,2.80124513]
[1672826759554,6.60084308,1249.8,1249.7,1.601]
[1672826759770,6.60084308,1249.8,1249.7,1.5970631]
[1672826759983,7.18845887,1249.8,1249.7,1.5970631]
[1672826760297,10.78167476,1249.8,1249.7,1.5970631]
[1672826764501,6.60051589,1249.8,1249.7,2.79730823]
[1672826768605,6.60051589,1249.8,1249.7,4.59767593]
[1672826769554,3.59321589,1249.8,1249.7,4.59767593]
[1672826772077,8.20151589,1249.9,1249.7,3.3974308]
[1672826772276,8.20151589,1249.9,1249.7,4.59748312]
[1672826773331,1.592,1249.8,1249.7,3.00042002]
[1672826773957,1.592,1249.8,1249.7,3.00025712]
[1672826774170,1.592,1249.8,1249.7,3.00025723]
[1672826774378,1.592,1249.8,1249.7,1.8003677]
[1672826775126,1.592,1249.8,1249.7,3.0002663]
[1672826775333,1.592,1249.8,1249.7,1.8003677]
[1672826775854,1.592,1249.8,1249.7,3.00016362]
[1672826777438,1.592,1249.8,1249.7,1.8003677]
[1672826777640,1.592,1249.8,1249.7,3.00012608]
[1672826779328,4.58569517,1249.8,1249.7,1.8003677]
[1672826780377,1.592,1249.8,1249.7,2.99991689]
[1672826780592,1.592,1249.8,1249.7,1.19954919]
[1672826780793,1.592,1249.8,1249.7,2.99991689]
[1672826783108,1.592,1249.8,1249.7,1.19954919]
[1672826783315,8.20151589,1249.9,1249.7,4.60091689]
[1672826789199,2.99316101,1249.8,1249.7,4.60091689]
[1672826789524,8.20151589,1249.9,1249.7,4.60091689]
[1672826793319,2.99303406,1249.8,1249.7,4.60091689]
[1672826794050,8.20151589,1249.9,1249.7,4.60091689]
[1672826794576,2.99304541,1249.8,1249.7,4.60091689]
[1672826795204,8.20151589,1249.9,1249.7,4.60091689]
[1672826795416,8.20151589,1249.9,1249.8,1.19954919]
[1672826796255,8.20151589,1249.9,1249.7,4.60091689]
[1672826796459,2.99319852,1249.8,1249.7,4.60091689]
[1672826796669,8.20151589,1249.9,1249.7,2.80054919]
[1672826796879,12.38267476,1249.9,1249.7,2.80054919]
[1672826797096,8.20151589,1249.9,1249.7,2.80054919]
[1672826797828,12.38267476,1249.9,1249.7,2.80054919]
[1672826798357,8.20151589,1249.9,1249.7,2.80054919]
[1672826798776,3.59321589,1249.8,1249.7,2.80054919]
[1672826800039,12.38267476,1249.9,1249.7,2.80054919]
[1672826800773,3.59321589,1249.8,1249.7,2.80054919]
[1672826801721,3.59321589,1249.8,1249.7,1.601]
[1672826802355,12.38267476,1249.9,1249.7,2.80054919]
[1672826803295,12.38167476,1249.9,1249.7,2.80054919]
[1672826804146,3.59321589,1249.8,1249.7,2.80054919]
[1672826804355,3.59321589,1249.8,1249.7,1.601]
[1672826804565,3.59321589,1249.8,1249.7,2.80054919]
[1672826806763,3.59321589,1249.8,1249.7,1.601]
[1672826807182,3.59321589,1249.8,1249.7,2.80054919]
[1672826807711,3.59321589,1249.8,1249.7,1.601]
[1672826808447,3.59321589,1249.8,1249.7,2.80054919]
[1672826809706,12.38167476,1249.9,1249.7,2.80054919]
[1672826810869,3.59321589,1249.8,1249.7,2.80054919]
[1672826811080,12.38167476,1249.9,1249.7,2.80054919]
[1672826811502,3.59321589,1249.8,1249.7,2.80054919]
[1672826812235,12.38167476,1249.9,1249.7,2.80054919]
[1672826813404,8.20051589,1249.9,1249.7,4.60091689]
[1672826813720,8.20051589,1249.9,1249.7,2.80054919]
[1672826814033,8.20051589,1249.9,1249.7,4.60091689]
[1672826814235,12.38167476,1249.9,1249.7,2.80054919]
[1672826815186,8.20051589,1249.9,1249.7,4.60091689]
[1672826819601,5.19321589,1249.9,1249.7,4.60091689]
[1672826822652,4.59439222,1249.9,1249.8,1.8003677]
[1672826822865,1.6,1249.9,1249.7,4.60106588]
[1672826823075,5.19321589,1249.9,1249.7,4.60106588]
[1672826824120,8.20051589,1249.9,1249.7,4.60106588]
[1672826825704,8.20051589,1249.9,1249.7,2.80069818]
[1672826825918,8.20051589,1249.9,1249.7,4.60106588]
[1672826829480,8.20051589,1249.9,1249.8,1.19969818]
[1672826829789,8.20051589,1249.9,1249.7,4.60106588]
[1672826831692,5.19321589,1249.9,1249.7,4.60106588]
[1672826831897,8.20051589,1249.9,1249.7,4.60106588]
[1672826834531,5.19321589,1249.9,1249.7,4.60106588]
[1672826834741,2.99202911,1249.8,1249.7,3.4013677]
[1672826837794,2.99202911,1249.8,1249.7,4.60096932]
[1672826838002,2.99202911,1249.8,1249.7,3.4013677]
[1672826839894,2.99202911,1249.8,1249.7,4.60094811]
[1672826840525,5.19321589,1249.9,1249.7,4.60094811]
[1672826841363,2.99172467,1249.8,1249.7,4.60094811]
[1672826841577,5.19321589,1249.9,1249.7,4.60094811]
[1672826842722,8.20051589,1249.9,1249.7,4.60094811]
[1672826843141,6.60051589,1249.9,1249.7,4.59594811]
[1672826844628,6.60051589,1249.9,1249.8,1.19958041]
[1672826849876,6.60051589,1249.9,1249.8,6.19958041]
[1672826850604,3.59321589,1249.9,1249.8,6.19958041]
[1672826856188,6.60051589,1249.9,1249.8,6.19958041]
[1672826860503,6.60051589,1249.9,1249.8,5.0]
[1672826860711,7.18845887,1249.9,1249.8,5.0]
[1672826861344,7.18845887,1249.9,1249.6,14.99444101]
[1672826861345,18.36945887,1249.9,1249.6,7.99994811]
[1672826861551,8.1984086,1249.7,1249.6,1.19958041]
[1672826861872,8.1984086,1249.7,1249.6,6.19958041]
[1672826862082,8.1984086,1249.7,1249.6,5.0]
[1672826862914,6.5994086,1249.7,1249.6,6.601]
[1672826863127,3.0073,1249.7,1249.6,7.80058041]
[1672826863342,3.0073,1249.7,1249.6,6.601]
[1672826863542,6.5994086,1249.7,1249.6,6.601]
[1672826867654,3.0073,1249.7,1249.6,6.601]
[1672826870908,5.1901086,1249.8,1249.6,6.601]
[1672826871120,8.1974086,1249.8,1249.6,6.601]
[1672826873334,2.98695761,1249.7,1249.6,6.601]
[1672826881003,5.99425761,1249.7,1249.6,6.601]
[1672826881434,2.98695761,1249.7,1249.6,6.601]
[1672826881750,5.99425761,1249.7,1249.6,6.601]
[1672826881959,3.0073,1249.7,1249.6,6.601]
[1672826883109,5.99407663,1249.7,1249.6,6.601]
[1672826889727,3.0073,1249.7,1249.6,6.601]
[1672826893419,3.0073,1249.7,1249.6,6.594]
[1672826894352,5.1931086,1249.8,1249.6,6.594]
[1672826894881,3.0073,1249.7,1249.6,6.594]
[1672826897512,6.5994086,1249.7,1249.6,6.594]
[1672826897721,3.0073,1249.7,1249.6,6.594]
[1672826898137,6.5994086,1249.7,1249.6,6.594]
[1672826898347,3.0073,1249.7,1249.6,6.594]
[1672826898772,6.5994086,1249.7,1249.6,6.594]
[1672826899501,6.5994086,1249.7,1249.6,7.79358041]
[1672826903192,6.5994086,1249.7,1249.6,6.594]
[1672826903400,6.5994086,1249.7,1249.6,7.79358041]
[1672826905506,3.5921086,1249.7,1249.6,7.79358041]
[1672826905713,6.5994086,1249.7,1249.6,7.79358041]
[1672826906762,6.5994086,1249.7,1249.6,6.594]
[1672826906969,6.5994086,1249.7,1249.6,7.79358041]
[1672826907502,6.5994086,1249.7,1249.6,6.594]
[1672826908441,6.5994086,1249.7,1249.6,7.79358041]
[1672826920740,3.5921086,1249.7,1249.6,7.79358041]
[1672826922422,3.5921086,1249.7,1249.6,6.594]
[1672826922743,3.5921086,1249.7,1249.6,7.79358041]
[1672826929357,3.5921086,1249.7,1249.6,9.59394811]
[1672826930513,3.5921086,1249.7,1249.6,7.79358041]
[1672826930724,3.5921086,1249.7,1249.6,9.59394811]
[1672826931138,3.5921086,1249.7,1249.6,7.79358041]
[1672826932410,3.5921086,1249.7,1249.6,9.59394811]
[1672826932828,3.5921086,1249.7,1249.6,7.79358041]
[1672826933140,3.5921086,1249.7,1249.6,9.59394811]
[1672826934612,3.5921086,1249.7,1249.6,7.79358041]
[1672826934822,3.5921086,1249.7,1249.6,9.59394811]
[1672826935138,3.5921086,1249.7,1249.6,7.79358041]
[1672826939550,3.5921086,1249.7,1249.6,6.594]
[1672826939872,7.77326747,1249.7,1249.6,6.594]
[1672826943345,7.77326747,1249.7,1249.6,5.0]
[1672826945543,3.5921086,1249.7,1249.6,5.0]
[1672826947213,3.5921086,1249.7,1249.6,6.19958041]
[1672826948068,3.5921086,1249.7,1249.6,1.19958041]
[1672826948268,5.1931086,1249.7,1249.5,4.19958041]
[1672826948478,9.37426747,1249.7,1249.5,5.99994811]
[1672826949117,9.36526747,1249.7,1249.5,7.59294811]
[1672826949324,5.1841086,1249.7,1249.5,7.59294811]
[1672826949643,3.0073,1249.6,1249.5,5.79258041]
[1672826949853,6.5994086,1249.6,1249.5,5.79258041]
[1672826950484,3.0073,1249.6,1249.5,5.79258041]
[1672826950899,9.36526747,1249.7,1249.5,5.79258041]
[1672826951112,3.0073,1249.6,1249.5,5.79258041]
[1672826951529,3.0073,1249.6,1249.5,7.59294811]
[1672826954796,3.0073,1249.6,1249.5,5.79258041]
[1672826955002,3.0073,1249.6,1249.5,7.59294811]
[1672826956262,2.99177772,1249.6,1249.5,6.3933677]
[1672826957202,2.99177772,1249.6,1249.5,8.79250871]
[1672826957419,2.99177772,1249.6,1249.5,6.3933677]
[1672826957842,2.99177772,1249.6,1249.5,8.79250871]
[1672826959214,2.99177772,1249.6,1249.5,6.3933677]
[1672826959423,2.99177772,1249.6,1249.5,8.79250871]
[1672826959742,2.99177772,1249.6,1249.5,6.3933677]
[1672826960675,2.99177772,1249.6,1249.5,5.8933677]
[1672826960892,5.1841086,1249.7,1249.5,7.09326799]
[1672826961100,3.0073,1249.6,1249.5,2.79290029]
[1672826961314,3.0073,1249.6,1249.5,4.59326799]
[1672826962995,8.1914086,1249.7,1249.5,4.59326799]
[1672826963405,8.1914086,1249.7,1249.5,2.79290029]
[1672826963611,8.1914086,1249.7,1249.5,4.59326799]
[1672826965297,8.1914086,1249.7,1249.5,2.79290029]
[1672826965932,8.1914086,1249.7,1249.5,4.59326799]
[1672826966353,8.1914086,1249.7,1249.5,2.79290029]
[1672826966563,8.1914086,1249.7,1249.5,4.59326799]
[1672826968774,8.1914086,1249.7,1249.5,2.79290029]
[1672826968988,12.37256747,1249.7,1249.5,2.79290029]
[1672826969926,8.1914086,1249.7,1249.5,4.59326799]
[1672826970130,3.5921086,1249.6,1249.5,2.79290029]
[1672826970347,12.37256747,1249.7,1249.5,2.79290029]
[1672826972760,12.37256747,1249.7,1249.5,4.59326799]
[1672826972971,8.1914086,1249.7,1249.5,4.59326799]
[1672826974763,8.1914086,1249.7,1249.6,3.19990029]
[1672826975496,8.1914086,1249.7,1249.6,2.0]
[1672826976439,8.1914086,1249.7,1249.6,3.19990029]
[1672826977077,1.592,1249.7,1249.6,5.00026799]
[1672826979805,1.592,1249.7,1249.6,3.19990029]
[1672826981067,5.1841086,1249.7,1249.6,3.19990029]
[1672826981698,5.1841086,1249.7,1249.6,2.0]
[1672826982540,5.1841086,1249.7,1249.6,3.19990029]
[1672826982960,8.1914086,1249.7,1249.6,3.19990029]
[1672826983168,6.5994086,1249.7,1249.6,4.80090029]
[1672826983485,6.5994086,1249.7,1249.6,3.601]
[1672826984326,6.5994086,1249.7,1249.6,1.601]
[1672826988428,7.18845887,1249.7,1249.6,1.601]
[1672826989485,10.77888208,1249.7,1249.6,1.601]
[1672826991054,6.59772321,1249.7,1249.6,1.601]
[1672826993476,10.77888208,1249.7,1249.6,1.601]
[1672826994523,6.59772321,1249.7,1249.6,1.601]
[1672826998942,10.77888208,1249.7,1249.6,1.601]
[1672826999988,7.77158208,1249.7,1249.6,1.601]
[1672827000205,10.77888208,1249.7,1249.6,1.601]
[1672827001359,7.18845887,1249.7,1249.6,1.601]
[1672827002828,10.77835141,1249.7,1249.6,1.601]
[1672827003141,6.59719254,1249.7,1249.6,1.601]
[1672827003345,8.19419254,1249.7,1249.5,6.59926799]
[1672827005458,2.99165644,1249.6,1249.5,6.59926799]
[1672827006935,2.99165644,1249.6,1249.5,5.3993677]
[1672827007570,2.99165644,1249.6,1249.5,6.59900464]
[1672827010390,2.99165644,1249.6,1249.5,5.3993677]
[1672827011132,2.99165644,1249.6,1249.5,6.59903117]
[1672827011554,2.99165644,1249.6,1249.5,5.3993677]
[1672827011982,2.99165644,1249.6,1249.5,6.59901927]
[1672827013455,2.99165644,1249.6,1249.5,6.59101927]
[1672827014605,2.99165644,1249.6,1249.5,5.3913677]
[1672827014920,2.39379319,1249.6,1249.5,28.7007049]
[1672827016072,2.39379319,1249.6,1249.5,27.28226757]
[1672827016283,5.38544963,1249.6,1249.5,27.28226757]
[1672827016912,2.39379319,1249.6,1249.5,27.28226757]
[1672827017125,5.38544963,1249.6,1249.5,27.28226757]
[1672827017547,5.38544963,1249.6,1249.5,19.29026757]
[1672827017863,2.99165644,1249.6,1249.5,7.78935549]
[1672827018383,5.38480437,1249.6,1249.5,7.78935549]
[1672827019127,2.99165644,1249.6,1249.5,7.78935549]
[1672827019860,5.38488206,1249.6,1249.5,7.78935549]
[1672827020704,5.38488206,1249.6,1249.5,5.99014101]
[1672827020899,2.99165644,1249.6,1249.5,7.78924836]
[1672827021112,5.38487813,1249.6,1249.5,7.78924836]
[1672827027428,5.38487813,1249.6,1249.5,5.39010735]
[1672827028269,2.99165644,1249.6,1249.5,5.39010735]
[1672827033842,5.99895644,1249.6,1249.5,6.58963858]
[1672827034051,3.0073,1249.6,1249.5,6.58963858]
[1672827034372,5.99891484,1249.6,1249.5,6.58963858]
[1672827035208,5.99891484,1249.6,1249.5,4.58963858]
[1672827035416,3.0073,1249.6,1249.5,2.78580691]
[1672827037949,3.0073,1249.6,1249.5,4.58491426]
[1672827038148,5.99894199,1249.6,1249.5,4.58491426]
[1672827044354,5.9943654,1249.6,1249.5,4.58491426]
[1672827045520,2.99164199,1249.6,1249.5,4.58491426]
[1672827045941,2.99164199,1249.6,1249.5,3.38538303]
[1672827046673,2.99164199,1249.6,1249.5,4.58493374]
[1672827046880,2.99164199,1249.6,1249.5,3.38538303]
[1672827049296,2.99164199,1249.6,1249.5,3.39210735]
[1672827049507,4.5933,1249.7,1249.5,2.79259924]
[1672827049820,8.18319254,1249.7,1249.5,4.59170659]
[1672827051613,2.99303156,1249.6,1249.5,4.59170659]
[1672827051816,8.18319254,1249.7,1249.5,4.59170659]
[1672827052022,2.99310287,1249.6,1249.5,4.59170659]
[1672827054345,2.99310287,1249.6,1249.5,3.39210735]
[1672827055278,2.99310287,1249.6,1249.5,4.59161923]
[1672827055493,2.99310287,1249.6,1249.5,3.39210735]
[1672827060971,8.18319254,1249.7,1249.5,4.59187591]
[1672827061390,2.99380528,1249.6,1249.5,3.39210735]
[1672827061604,2.99380528,1249.6,1249.5,5.79124836]
[1672827062648,2.99380528,1249.6,1249.5,3.39210735]
[1672827063185,2.99380528,1249.6,1249.5,3.40010735]
[1672827066225,2.99380528,1249.6,1249.5,5.79924836]
[1672827066542,2.99380528,1249.6,1249.5,3.40010735]
[1672827066965,6.59719254,1249.7,1249.5,3.40010735]
[1672827067277,6.59719254,1249.7,1249.6,1.19993454]
[1672827073169,6.59719254,1249.7,1249.6,2.79893454]
[1672827074016,3.58989254,1249.7,1249.6,2.79893454]
[1672827077486,3.58989254,1249.7,1249.6,1.599]
[1672827077800,7.77105141,1249.7,1249.6,1.599]
[1672827078430,4.18115887,1249.7,1249.6,1.599]
[1672827079701,3.59302611,1249.7,1249.6,1.599]
[1672827080325,7.77418498,1249.7,1249.6,1.599]
[1672827080951,4.18115887,1249.7,1249.6,1.599]
[1672827083059,7.18845887,1249.7,1249.6,1.599]
[1672827087262,4.18115887,1249.7,1249.6,1.599]
[1672827087474,7.18845887,1249.7,1249.6,1.599]
[1672827088624,10.78013398,1249.7,1249.6,1.599]
[1672827088942,15.18045887,1249.7,1249.6,1.599]
[1672827090090,18.77182923,1249.7,1249.6,1.599]
[1672827091045,15.18045887,1249.7,1249.6,1.599]
[1672827092305,18.77159633,1249.7,1249.6,1.599]
[1672827093258,18.77159633,1249.7,1249.5,2.80093454]
[1672827093882,10.77959633,1249.7,1249.5,2.80093454]
[1672827094290,6.59843746,1249.7,1249.5,2.80093454]
[1672827094505,10.77959633,1249.7,1249.5,2.80093454]
[1672827097455,6.59843746,1249.7,1249.5,2.80093454]
[1672827098399,14.59043746,1249.7,1249.5,1.601]
[1672827098605,18.77159633,1249.7,1249.5,1.601]
[1672827098927,3.59113746,1249.6,1249.5,1.601]
[1672827101028,6.59843746,1249.6,1249.5,1.601]
[1672827103237,3.59113746,1249.6,1249.5,1.601]
[1672827103549,6.59843746,1249.6,1249.5,3.601]
[1672827109015,6.59843746,1249.6,1249.5,1.601]
[1672827115423,6.59843746,1249.6,1249.5,2.80093454]
[1672827117515,6.59843746,1249.6,1249.5,1.601]
[1672827117731,10.77959633,1249.6,1249.5,1.601]
[1672827119405,6.59843746,1249.6,1249.5,1.601]
[1672827119840,10.77959633,1249.6,1249.5,1.601]
[1672827121203,6.59843746,1249.6,1249.5,1.601]
[1672827121618,10.78143449,1249.6,1249.5,1.601]
[1672827121831,10.78143449,1249.6,1249.5,1.59782238]
[1672827122150,7.18845887,1249.6,1249.5,1.59782238]
[1672827123104,10.78142229,1249.6,1249.5,1.59782238]
[1672827123830,6.60026342,1249.6,1249.5,1.59782238]
[1672827124249,6.60026342,1249.6,1249.5,2.79775692]
[1672827126982,6.60026342,1249.6,1249.5,1.59782238]
[1672827127199,6.60026342,1249.6,1249.5,2.79775692]
[1672827127824,6.60026342,1249.6,1249.5,1.59782238]
[1672827128034,6.60026342,1249.6,1249.5,2.79775692]
[1672827128249,6.60026342,1249.6,1249.5,1.59782238]
[1672827128463,6.60026342,1249.6,1249.5,2.79775692]
[1672827129407,6.60026342,1249.6,1249.5,1.59782238]
[1672827129827,6.60026342,1249.6,1249.5,2.79775692]
[1672827133187,6.60026342,1249.6,1249.5,2.79293454]
[1672827142755,14.59226342,1249.6,1249.5,1.19993454]
[1672827143075,16.19326342,1249.6,1249.4,4.60004189]
[1672827143284,20.37442229,1249.6,1249.4,4.60004189]
[1672827143917,20.37442229,1249.6,1249.5,1.19993454]
[1672827145381,16.19326342,1249.6,1249.5,1.19993454]